[Event "*** Titled Tuesday Blitz"]
[Site "Chess.com"]
[Date "2019.01.01"]
[Round "7"]
[White "2nd_life"]
[Black "DryCounty"]
[Result "1-0"]
[WhiteElo "2435"]
[BlackElo "2730"]
[TimeControl "180+2"]
[EndTime "14:41:36 PST"]
[Termination "2nd_life won by resignation"]

1. e4 {[%clk 0:03:01.9]} 1... e5 {[%clk 0:02:57.3]} 2. f4 {[%clk 0:03:02.3]}
2... Bc5 {[%clk 0:02:57.6]} 3. Nf3 {[%clk 0:03:03.3]} 3... d6 {[%clk 0:02:58.2]}
4. Nc3 {[%clk 0:03:04]} 4... Nf6 {[%clk 0:02:58.6]} 5. Bc4 {[%clk 0:03:02.2]}
5... Nc6 {[%clk 0:02:57.9]} 6. d3 {[%clk 0:03:02.6]} 6... Nd4 {[%clk 0:02:57.9]}
7. Na4 {[%clk 0:02:38.2]} 7... Bg4 {[%clk 0:02:53]} 8. Nxc5 {[%clk 0:02:29.6]}
8... Bxf3 {[%clk 0:02:47.3]} 9. gxf3 {[%clk 0:02:20.9]} 9... dxc5 {[%clk
0:02:48.2]} 10. c3 {[%clk 0:02:10.8]} 10... Nc6 {[%clk 0:02:44.5]} 11. Qe2
{[%clk 0:01:39.2]} 11... Nh5 {[%clk 0:02:38.2]} 12. Qf2 {[%clk 0:01:14.5]} 12...
exf4 {[%clk 0:02:17.1]} 13. Qxc5 {[%clk 0:01:14.4]} 13... Qh4+ {[%clk
0:02:16.3]} 14. Qf2 {[%clk 0:01:15.1]} 14... Qxf2+ {[%clk 0:02:15.7]} 15. Kxf2
{[%clk 0:01:13.8]} 15... Ne5 {[%clk 0:02:17.2]} 16. Rg1 {[%clk 0:00:58.9]} 16...
g6 {[%clk 0:02:11.5]} 17. Rg5 {[%clk 0:00:53.4]} 17... Nxc4 {[%clk 0:02:10.9]}
18. dxc4 {[%clk 0:00:51.7]} 18... O-O-O {[%clk 0:02:10.8]} 19. Rd5 {[%clk
0:00:27.4]} 19... c6 {[%clk 0:02:07.9]} 20. Rd4 {[%clk 0:00:28.3]} 20... g5
{[%clk 0:01:53.4]} 21. b3 {[%clk 0:00:20.9]} 21... Ng7 {[%clk 0:01:52.6]} 22.
Bd2 {[%clk 0:00:11.8]} 22... Ne6 {[%clk 0:01:53]} 23. Rxd8+ {[%clk 0:00:12.9]}
23... Rxd8 {[%clk 0:01:54.5]} 24. Ke2 {[%clk 0:00:14.3]} 24... h5 {[%clk
0:01:45.4]} 25. Rg1 {[%clk 0:00:15.3]} 25... Rg8 {[%clk 0:01:44.4]} 26. h3
{[%clk 0:00:15.9]} 26... Kd7 {[%clk 0:01:43.5]} 27. Be1 {[%clk 0:00:14.1]} 27...
Ke7 {[%clk 0:01:41.7]} 28. Bf2 {[%clk 0:00:15.3]} 28... a6 {[%clk 0:01:41.3]}
29. a4 {[%clk 0:00:10.8]} 29... f6 {[%clk 0:01:41.5]} 30. a5 {[%clk 0:00:09.9]}
30... Rf8 {[%clk 0:01:42.3]} 31. Rd1 {[%clk 0:00:09.9]} 31... f5 {[%clk
0:01:42]} 32. exf5 {[%clk 0:00:10.3]} 32... Rxf5 {[%clk 0:01:42.3]} 33. b4
{[%clk 0:00:11.7]} 33... Re5+ {[%clk 0:01:42.2]} 34. Kf1 {[%clk 0:00:12.8]}
34... Rf5 {[%clk 0:01:36.7]} 35. Re1 {[%clk 0:00:12.8]} 35... Kf7 {[%clk
0:01:36.2]} 36. Rd1 {[%clk 0:00:13.9]} 36... Ke7 {[%clk 0:01:35.7]} 37. Re1
{[%clk 0:00:15]} 37... Kf6 {[%clk 0:01:33]} 38. Rd1 {[%clk 0:00:16]} 38... Kg7
{[%clk 0:01:28.5]} 39. Rd6 {[%clk 0:00:12.9]} 39... Rf6 {[%clk 0:01:08.2]} 40.
Rd7+ {[%clk 0:00:05.5]} 40... Rf7 {[%clk 0:01:07.3]} 41. Rd6 {[%clk 0:00:06.7]}
41... Re7 {[%clk 0:01:06.1]} 42. Bb6 {[%clk 0:00:05.1]} 42... Kf7 {[%clk
0:01:06.5]} 43. Kf2 {[%clk 0:00:06.4]} 43... Ke8 {[%clk 0:01:00.9]} 44. Rd2
{[%clk 0:00:07.2]} 44... Rd7 {[%clk 0:00:59.2]} 45. Re2 {[%clk 0:00:08.5]} 45...
Kf7 {[%clk 0:01:00.5]} 46. b5 {[%clk 0:00:08.9]} 46... axb5 {[%clk 0:00:58.2]}
47. cxb5 {[%clk 0:00:10.8]} 47... cxb5 {[%clk 0:00:59.7]} 48. Rb2 {[%clk
0:00:11.7]} 48... Rd5 {[%clk 0:00:59.9]} 49. Rc2 {[%clk 0:00:08.7]} 49... Nc5
{[%clk 0:01:00.1]} 50. c4 {[%clk 0:00:08]} 50... Nd3+ {[%clk 0:00:57.3]} 51. Ke2
{[%clk 0:00:08.3]} 51... bxc4 {[%clk 0:00:56.2]} 52. Rxc4 {[%clk 0:00:10.2]}
52... Ne5 {[%clk 0:00:57.2]} 53. Rc7+ {[%clk 0:00:10.9]} 53... Rd7 {[%clk
0:00:58.1]} 54. Rc8 {[%clk 0:00:10.7]} 54... Ke6 {[%clk 0:00:57]} 55. Rg8 {[%clk
0:00:07.3]} 55... Kf5 {[%clk 0:00:55.4]} 56. Bd8 {[%clk 0:00:06.6]} 56... Nf7
{[%clk 0:00:55.5]} 57. Bb6 {[%clk 0:00:07]} 57... Re7+ {[%clk 0:00:47.7]} 58.
Kf2 {[%clk 0:00:08.1]} 58... Ne5 {[%clk 0:00:46.8]} 59. Rf8+ {[%clk 0:00:09.4]}
59... Ke6 {[%clk 0:00:45.6]} 60. Rg8 {[%clk 0:00:09.2]} 60... Nd3+ {[%clk
0:00:43.9]} 61. Kf1 {[%clk 0:00:06.7]} 61... Kf5 {[%clk 0:00:42.1]} 62. Rf8+
{[%clk 0:00:08]} 62... Ke5 {[%clk 0:00:40.5]} 63. Rg8 {[%clk 0:00:04.9]} 63...
Kf5 {[%clk 0:00:41.5]} 64. Rf8+ {[%clk 0:00:06.3]} 64... Kg6 {[%clk 0:00:42.8]}
65. Rg8+ {[%clk 0:00:07.7]} 65... Rg7 {[%clk 0:00:43.8]} 66. Re8 {[%clk
0:00:08.9]} 66... Kf5 {[%clk 0:00:43.4]} 67. Rf8+ {[%clk 0:00:09.5]} 67... Ke6
{[%clk 0:00:43.2]} 68. Ke2 {[%clk 0:00:08.9]} 68... Ne5 {[%clk 0:00:42.3]} 69.
Bd4 {[%clk 0:00:09.9]} 69... Nc6 {[%clk 0:00:40.5]} 70. Bxg7 {[%clk 0:00:09.9]}
70... Nxa5 {[%clk 0:00:40.2]} 71. Rf6+ {[%clk 0:00:10.4]} 71... Ke7 {[%clk
0:00:40.9]} 72. Rf5 {[%clk 0:00:11.6]} 72... Ke6 {[%clk 0:00:39.7]} 73. Rxa5
{[%clk 0:00:12.1]} 1-0

[Event "*** Titled Tuesday Blitz"]
[Site "Chess.com"]
[Date "2019.01.01"]
[Round "7"]
[White "BlackBoarder"]
[Black "Naruto-K"]
[Result "1-0"]
[WhiteElo "2568"]
[BlackElo "2489"]
[TimeControl "180+2"]
[EndTime "14:41:46 PST"]
[Termination "BlackBoarder won by resignation"]

1. e4 {[%clk 0:03:01.9]} 1... e6 {[%clk 0:03:01.1]} 2. d4 {[%clk 0:02:57.7]}
2... d5 {[%clk 0:03:02.4]} 3. Bd3 {[%clk 0:02:59.2]} 3... c5 {[%clk 0:03:02.7]}
4. exd5 {[%clk 0:03:00.1]} 4... exd5 {[%clk 0:03:03.8]} 5. Nf3 {[%clk
0:03:00.9]} 5... Nf6 {[%clk 0:03:05.4]} 6. O-O {[%clk 0:03:01.8]} 6... Be7
{[%clk 0:03:07]} 7. Re1 {[%clk 0:03:03.4]} 7... O-O {[%clk 0:03:08.1]} 8. Nc3
{[%clk 0:02:56.6]} 8... Nc6 {[%clk 0:03:03.4]} 9. dxc5 {[%clk 0:02:49.8]} 9...
Bxc5 {[%clk 0:03:04.2]} 10. Bg5 {[%clk 0:02:47.3]} 10... h6 {[%clk 0:03:05.4]}
11. Bxf6 {[%clk 0:02:46.4]} 11... Qxf6 {[%clk 0:03:04.1]} 12. Nxd5 {[%clk
0:02:48]} 12... Qxb2 {[%clk 0:03:05]} 13. Nd2 {[%clk 0:02:31.1]} 13... Qd4
{[%clk 0:02:31.8]} 14. Ne3 {[%clk 0:02:26]} 14... Be6 {[%clk 0:02:27]} 15. Nb3
{[%clk 0:02:22.4]} 15... Qd6 {[%clk 0:02:25.9]} 16. Qh5 {[%clk 0:02:01.2]} 16...
Bb4 {[%clk 0:02:02.5]} 17. Red1 {[%clk 0:01:42.1]} 17... Qf4 {[%clk 0:02:03.2]}
18. g3 {[%clk 0:01:37.1]} 18... Qg5 {[%clk 0:02:04]} 19. Qxg5 {[%clk 0:01:35.6]}
19... hxg5 {[%clk 0:02:05.9]} 20. Bf5 {[%clk 0:01:34.6]} 20... Bxf5 {[%clk
0:01:50.1]} 21. Nxf5 {[%clk 0:01:35.5]} 21... Rad8 {[%clk 0:01:51.5]} 22. Rd3
{[%clk 0:01:19.1]} 22... Rxd3 {[%clk 0:01:49.5]} 23. cxd3 {[%clk 0:01:20.2]}
23... Rd8 {[%clk 0:01:49.9]} 24. Rd1 {[%clk 0:01:18.6]} 24... a5 {[%clk
0:01:44.8]} 25. a4 {[%clk 0:01:17.4]} 25... g6 {[%clk 0:01:43.6]} 26. Ne3 {[%clk
0:01:17.7]} 26... Bc3 {[%clk 0:01:39.2]} 27. Nc4 {[%clk 0:01:13.3]} 27... Kg7
{[%clk 0:01:38.7]} 28. Kf1 {[%clk 0:01:13.7]} 28... Nb4 {[%clk 0:01:31.3]} 29.
Nbxa5 {[%clk 0:01:06]} 29... b6 {[%clk 0:01:30.7]} 30. Nxb6 {[%clk 0:01:02.1]}
30... Rxd3 {[%clk 0:01:14.5]} 31. Rxd3 {[%clk 0:01:01.2]} 31... Nxd3 {[%clk
0:01:16.4]} 32. Nac4 {[%clk 0:00:57.2]} 32... Bd4 {[%clk 0:01:07.4]} 33. f3
{[%clk 0:00:52.9]} 33... Kf6 {[%clk 0:01:04.1]} 34. Ke2 {[%clk 0:00:53.6]} 34...
Nc5 {[%clk 0:01:04.7]} 35. a5 {[%clk 0:00:47.7]} 35... Ke6 {[%clk 0:01:05.7]}
36. Nd2 {[%clk 0:00:23.7]} 36... f5 {[%clk 0:01:04.5]} 37. g4 {[%clk 0:00:22.8]}
37... Kd6 {[%clk 0:01:00.9]} 38. h3 {[%clk 0:00:20.6]} 38... Kc6 {[%clk
0:01:01.1]} 39. Nbc4 {[%clk 0:00:17.7]} 39... Kd5 {[%clk 0:00:50]} 40. Kd1
{[%clk 0:00:16.4]} 40... Kc6 {[%clk 0:00:42.2]} 41. Kc2 {[%clk 0:00:15.9]} 41...
Kd5 {[%clk 0:00:39.2]} 42. Na3 {[%clk 0:00:11.3]} 42... Kc6 {[%clk 0:00:36.6]}
43. Nb3 {[%clk 0:00:12.3]} 43... Bg1 {[%clk 0:00:34.1]} 44. Nxc5 {[%clk
0:00:12.2]} 44... Kxc5 {[%clk 0:00:35.4]} 45. Kb3 {[%clk 0:00:13.2]} 45... Bf2
{[%clk 0:00:34.4]} 46. Ka4 {[%clk 0:00:12]} 46... Be1 {[%clk 0:00:27.8]} 47. Nb5
{[%clk 0:00:08.6]} 47... Bg3 {[%clk 0:00:25]} 48. a6 {[%clk 0:00:05.8]} 48...
Kb6 {[%clk 0:00:25.8]} 49. a7 {[%clk 0:00:07.3]} 49... Kb7 {[%clk 0:00:27.2]}
50. Kb4 {[%clk 0:00:07.2]} 50... Bf2 {[%clk 0:00:27.3]} 51. Kc4 {[%clk
0:00:07.6]} 51... fxg4 {[%clk 0:00:24.2]} 52. hxg4 {[%clk 0:00:08.4]} 52... Be3
{[%clk 0:00:24.8]} 53. Kd5 {[%clk 0:00:09.3]} 53... Bc1 {[%clk 0:00:25.7]} 54.
Ke6 {[%clk 0:00:10.3]} 54... Bd2 {[%clk 0:00:26.8]} 55. Kf6 {[%clk 0:00:11.8]}
55... Bc1 {[%clk 0:00:28.2]} 56. Kxg6 {[%clk 0:00:13.2]} 56... Bd2 {[%clk
0:00:29.4]} 57. Kf5 {[%clk 0:00:14.6]} 57... Bc1 {[%clk 0:00:30]} 58. Ke6 {[%clk
0:00:16]} 58... Bf4 {[%clk 0:00:30.6]} 59. Kf5 {[%clk 0:00:16.3]} 59... Bc1
{[%clk 0:00:31.4]} 60. Nd4 {[%clk 0:00:16.8]} 60... Kxa7 {[%clk 0:00:31.3]} 61.
Ne6 {[%clk 0:00:18.1]} 61... Kb6 {[%clk 0:00:32.3]} 62. Nxg5 {[%clk 0:00:19.2]}
62... Kc6 {[%clk 0:00:34.2]} 63. Ne6 {[%clk 0:00:19.8]} 63... Kd7 {[%clk
0:00:35.2]} 64. g5 {[%clk 0:00:21.2]} 64... Ke7 {[%clk 0:00:36.1]} 65. f4 {[%clk
0:00:22.7]} 65... Bb2 {[%clk 0:00:36.7]} 66. g6 {[%clk 0:00:23.7]} 66... Bc3
{[%clk 0:00:36.8]} 67. Ng5 {[%clk 0:00:23.9]} 67... Bb2 {[%clk 0:00:35.8]} 68.
Nh7 {[%clk 0:00:24.9]} 68... Ba1 {[%clk 0:00:25.8]} 69. Kg5 {[%clk 0:00:26.1]}
69... Bb2 {[%clk 0:00:23.5]} 70. f5 {[%clk 0:00:27.5]} 70... Bc1+ {[%clk
0:00:24.9]} 71. Kg4 {[%clk 0:00:28]} 71... Bb2 {[%clk 0:00:26]} 72. Kf4 {[%clk
0:00:25.7]} 72... Bc3 {[%clk 0:00:25.3]} 73. Ng5 {[%clk 0:00:25.7]} 73... Kf6
{[%clk 0:00:25.9]} 74. Ne4+ {[%clk 0:00:26.5]} 1-0

[Event "*** Titled Tuesday Blitz"]
[Site "Chess.com"]
[Date "2019.01.01"]
[Round "7"]
[White "DrMelekess"]
[Black "nurgyulsalimova"]
[Result "1/2-1/2"]
[WhiteElo "2586"]
[BlackElo "2480"]
[TimeControl "180+2"]
[EndTime "14:41:50 PST"]
[Termination "Game drawn by repetition"]

1. d4 {[%clk 0:03:01.9]} 1... Nf6 {[%clk 0:03:00.7]} 2. Nf3 {[%clk 0:02:55.9]}
2... d5 {[%clk 0:03:00.9]} 3. e3 {[%clk 0:02:56.3]} 3... e6 {[%clk 0:02:58.7]}
4. c4 {[%clk 0:02:56.9]} 4... Be7 {[%clk 0:02:55.6]} 5. Nc3 {[%clk 0:02:52.3]}
5... O-O {[%clk 0:02:50.7]} 6. Be2 {[%clk 0:02:52.1]} 6... dxc4 {[%clk
0:02:45.1]} 7. O-O {[%clk 0:02:51.9]} 7... c5 {[%clk 0:02:47]} 8. Bxc4 {[%clk
0:02:52.5]} 8... Nc6 {[%clk 0:02:36.7]} 9. dxc5 {[%clk 0:02:53.2]} 9... Bxc5
{[%clk 0:02:36.7]} 10. a3 {[%clk 0:02:54.4]} 10... a6 {[%clk 0:02:25.9]} 11. b4
{[%clk 0:02:54.9]} 11... Bd6 {[%clk 0:02:17.7]} 12. Bb2 {[%clk 0:02:42.6]} 12...
b5 {[%clk 0:02:18]} 13. Bb3 {[%clk 0:02:42.2]} 13... Bb7 {[%clk 0:02:17.3]} 14.
Qe2 {[%clk 0:02:43.5]} 14... Qe7 {[%clk 0:02:17.9]} 15. Rfd1 {[%clk 0:02:42.1]}
15... Ne5 {[%clk 0:02:15]} 16. Nxe5 {[%clk 0:01:31.9]} 16... Bxe5 {[%clk
0:02:16.9]} 17. Rac1 {[%clk 0:01:33.3]} 17... Rfd8 {[%clk 0:02:14.2]} 18. h3
{[%clk 0:01:28.6]} 18... Rac8 {[%clk 0:02:13.4]} 19. Rxd8+ {[%clk 0:01:27.2]}
19... Rxd8 {[%clk 0:02:10.9]} 20. f4 {[%clk 0:00:58.7]} 20... Bb8 {[%clk
0:02:08]} 21. Bc2 {[%clk 0:00:59.4]} 21... h6 {[%clk 0:01:58.8]} 22. Rd1 {[%clk
0:00:51.1]} 22... Rxd1+ {[%clk 0:01:56.3]} 23. Qxd1 {[%clk 0:00:53]} 23... Qd7
{[%clk 0:01:57.6]} 24. Qxd7 {[%clk 0:00:51.6]} 24... Nxd7 {[%clk 0:01:59.5]} 25.
Be4 {[%clk 0:00:31.8]} 25... Bc8 {[%clk 0:01:59.6]} 26. a4 {[%clk 0:00:28.4]}
26... Ba7 {[%clk 0:01:52.9]} 27. Kf2 {[%clk 0:00:29.1]} 27... bxa4 {[%clk
0:01:44.1]} 28. Nxa4 {[%clk 0:00:31]} 28... Nf6 {[%clk 0:01:21.3]} 29. Bf3
{[%clk 0:00:20.9]} 29... Kf8 {[%clk 0:01:12.1]} 30. Bd4 {[%clk 0:00:19.9]} 30...
Bxd4 {[%clk 0:01:10]} 31. exd4 {[%clk 0:00:21.8]} 31... Ke7 {[%clk 0:01:05.8]}
32. Nc5 {[%clk 0:00:23.1]} 32... Kd6 {[%clk 0:01:02.7]} 33. Ke2 {[%clk
0:00:23.7]} 33... Nd5 {[%clk 0:00:52.2]} 34. Bxd5 {[%clk 0:00:24.4]} 34... Kxd5
{[%clk 0:00:54.1]} 35. Kd3 {[%clk 0:00:25.2]} 35... f6 {[%clk 0:00:55.3]} 36.
Na4 {[%clk 0:00:19.1]} 36... Kd6 {[%clk 0:00:51.8]} 37. g3 {[%clk 0:00:16.1]}
37... e5 {[%clk 0:00:48.5]} 38. fxe5+ {[%clk 0:00:15.9]} 38... fxe5 {[%clk
0:00:50.4]} 39. h4 {[%clk 0:00:17.2]} 39... Bd7 {[%clk 0:00:44.3]} 40. Nc3
{[%clk 0:00:17.2]} 40... Bc6 {[%clk 0:00:35.4]} 41. Kc4 {[%clk 0:00:14.3]} 41...
g5 {[%clk 0:00:21.2]} 42. hxg5 {[%clk 0:00:13.5]} 42... hxg5 {[%clk 0:00:22.2]}
43. Kd3 {[%clk 0:00:04.4]} 43... g4 {[%clk 0:00:16.9]} 44. Ke3 {[%clk
0:00:05.5]} 44... Ke6 {[%clk 0:00:16]} 45. Kd3 {[%clk 0:00:04.4]} 45... Kd6
{[%clk 0:00:15.5]} 46. Kc4 {[%clk 0:00:05.8]} 46... exd4 {[%clk 0:00:07.3]} 47.
Kxd4 {[%clk 0:00:06.7]} 47... Bf3 {[%clk 0:00:08.8]} 48. Ke3 {[%clk 0:00:03.5]}
48... Ke5 {[%clk 0:00:08.1]} 49. Kd3 {[%clk 0:00:04.4]} 49... Ke6 {[%clk
0:00:07.2]} 50. Na4 {[%clk 0:00:05.2]} 50... Kd6 {[%clk 0:00:06.8]} 51. Kd4
{[%clk 0:00:05.4]} 51... Be2 {[%clk 0:00:07.1]} 52. Nc3 {[%clk 0:00:06]} 52...
Bf3 {[%clk 0:00:07.7]} 53. Nb1 {[%clk 0:00:05.1]} 53... Kc6 {[%clk 0:00:08]} 54.
Nc3 {[%clk 0:00:06.4]} 54... Kb6 {[%clk 0:00:07.5]} 55. Kc4 {[%clk 0:00:05.2]}
55... Kc6 {[%clk 0:00:08.6]} 56. Kd4 {[%clk 0:00:05.5]} 56... Kd6 {[%clk
0:00:09.3]} 57. Ke3 {[%clk 0:00:06.3]} 57... Ke5 {[%clk 0:00:10.1]} 58. Kd3
{[%clk 0:00:07.7]} 58... Ke6 {[%clk 0:00:10]} 59. Kc4 {[%clk 0:00:08.4]} 59...
Ke5 {[%clk 0:00:09.5]} 60. Kd3 {[%clk 0:00:08.1]} 60... Ke6 {[%clk 0:00:10.4]}
1/2-1/2

[Event "*** Titled Tuesday Blitz"]
[Site "Chess.com"]
[Date "2019.01.01"]
[Round "7"]
[White "GeorgMeier"]
[Black "sergiochess83"]
[Result "1-0"]
[WhiteElo "2825"]
[BlackElo "2762"]
[TimeControl "180+2"]
[EndTime "14:41:54 PST"]
[Termination "GeorgMeier won by resignation"]

1. Nf3 {[%clk 0:02:52.9]} 1... d5 {[%clk 0:02:58.7]} 2. g3 {[%clk 0:02:54.2]}
2... c6 {[%clk 0:02:59.1]} 3. Bg2 {[%clk 0:02:55.7]} 3... Bg4 {[%clk 0:03:00.1]}
4. h3 {[%clk 0:02:55.4]} 4... Bh5 {[%clk 0:02:58.4]} 5. c4 {[%clk 0:02:56.5]}
5... e6 {[%clk 0:02:59.3]} 6. O-O {[%clk 0:02:57]} 6... Nf6 {[%clk 0:02:58.5]}
7. d3 {[%clk 0:02:57.9]} 7... Bd6 {[%clk 0:02:56]} 8. Qb3 {[%clk 0:02:52.1]}
8... Qb6 {[%clk 0:02:55.4]} 9. Be3 {[%clk 0:02:53.5]} 9... Qxb3 {[%clk
0:02:56.2]} 10. axb3 {[%clk 0:02:55.4]} 10... Nbd7 {[%clk 0:02:45.9]} 11. g4
{[%clk 0:02:56.2]} 11... Bg6 {[%clk 0:02:46.4]} 12. Nh4 {[%clk 0:02:57.2]} 12...
a6 {[%clk 0:02:39.6]} 13. Nc3 {[%clk 0:02:53.5]} 13... O-O {[%clk 0:02:34.7]}
14. Rac1 {[%clk 0:02:32.1]} 14... Rfe8 {[%clk 0:02:34.8]} 15. Nxg6 {[%clk
0:02:27]} 15... hxg6 {[%clk 0:02:35.4]} 16. d4 {[%clk 0:02:25.4]} 16... Nh7
{[%clk 0:02:08.3]} 17. g5 {[%clk 0:02:17.3]} 17... Be7 {[%clk 0:02:00.6]} 18. h4
{[%clk 0:02:15.7]} 18... Nb6 {[%clk 0:02:01.7]} 19. c5 {[%clk 0:01:51.8]} 19...
Nd7 {[%clk 0:01:56.4]} 20. f4 {[%clk 0:01:50.7]} 20... f6 {[%clk 0:01:52.7]} 21.
b4 {[%clk 0:01:47.5]} 21... Nhf8 {[%clk 0:01:52.5]} 22. Bd2 {[%clk 0:01:29.6]}
22... Bd8 {[%clk 0:01:47.7]} 23. e4 {[%clk 0:01:22.3]} 23... dxe4 {[%clk
0:01:48.1]} 24. Bxe4 {[%clk 0:01:16.4]} 24... Bc7 {[%clk 0:01:49.1]} 25. Kf2
{[%clk 0:01:01.3]} 25... Rad8 {[%clk 0:01:49.6]} 26. Be3 {[%clk 0:01:00.7]}
26... Kf7 {[%clk 0:01:49.9]} 27. Rh1 {[%clk 0:00:59.2]} 27... Ke7 {[%clk
0:01:44]} 28. Ra1 {[%clk 0:00:44.1]} 28... Nb8 {[%clk 0:01:43.2]} 29. b5 {[%clk
0:00:39.1]} 29... axb5 {[%clk 0:01:29.8]} 30. Ra7 {[%clk 0:00:39.2]} 30... Rd7
{[%clk 0:01:28.6]} 31. Rxb7 {[%clk 0:00:37.2]} 31... Ba5 {[%clk 0:01:17.2]} 32.
Rxd7+ {[%clk 0:00:21]} 32... Kxd7 {[%clk 0:01:19.1]} 33. Ra1 {[%clk 0:00:21.3]}
33... Bc7 {[%clk 0:01:20]} 34. Ra7 {[%clk 0:00:21.5]} 34... Kc8 {[%clk
0:01:21.2]} 35. Na2 {[%clk 0:00:22.6]} 35... e5 {[%clk 0:01:20.6]} 36. dxe5
{[%clk 0:00:18.8]} 36... fxe5 {[%clk 0:01:22.5]} 37. f5 {[%clk 0:00:20.3]} 37...
gxf5 {[%clk 0:01:09]} 38. Bxf5+ {[%clk 0:00:22.2]} 38... Nfd7 {[%clk 0:01:10.5]}
39. Kf3 {[%clk 0:00:20.3]} 39... e4+ {[%clk 0:01:07.3]} 40. Ke2 {[%clk
0:00:21.4]} 40... Re5 {[%clk 0:01:05.9]} 41. Bg4 {[%clk 0:00:21.5]} 41... Kd8
{[%clk 0:01:05.3]} 42. Bf4 {[%clk 0:00:14.9]} 42... e3 {[%clk 0:00:55.3]} 43.
Nb4 {[%clk 0:00:13.2]} 43... Nxc5 {[%clk 0:00:47.2]} 44. Rxc7 {[%clk 0:00:13.2]}
44... Re4 {[%clk 0:00:44.4]} 45. Rc8+ {[%clk 0:00:14.1]} 45... Ke7 {[%clk
0:00:45.1]} 46. Bxe3 {[%clk 0:00:14.8]} 46... Ncd7 {[%clk 0:00:33.8]} 47. Bxd7
{[%clk 0:00:15.1]} 47... Nxd7 {[%clk 0:00:34.5]} 48. Nxc6+ {[%clk 0:00:16.3]}
48... Kd6 {[%clk 0:00:35.8]} 49. Nd4 {[%clk 0:00:17.4]} 49... Ne5 {[%clk
0:00:32.8]} 50. Re8 {[%clk 0:00:17.1]} 50... Kd7 {[%clk 0:00:29.6]} 51. Rf8
{[%clk 0:00:12.3]} 51... Nc4 {[%clk 0:00:28.2]} 52. Nc2 {[%clk 0:00:12.5]} 52...
Rxh4 {[%clk 0:00:26.1]} 53. b3 {[%clk 0:00:12.3]} 53... Rh2+ {[%clk 0:00:16.9]}
54. Rf2 {[%clk 0:00:12.3]} 54... Nxe3 {[%clk 0:00:17.9]} 55. Rxh2 {[%clk
0:00:12.4]} 55... Nxc2 {[%clk 0:00:18.8]} 56. Kd3 {[%clk 0:00:13.6]} 56... Nb4+
{[%clk 0:00:17.8]} 57. Ke4 {[%clk 0:00:14.8]} 57... Ke6 {[%clk 0:00:17.8]} 58.
Rf2 {[%clk 0:00:14.4]} 58... Na6 {[%clk 0:00:14.8]} 59. Rf5 {[%clk 0:00:14.7]}
59... Nc7 {[%clk 0:00:14.8]} 60. Re5+ {[%clk 0:00:15.5]} 60... Kd6 {[%clk
0:00:15.8]} 61. b4 {[%clk 0:00:16.7]} 61... g6 {[%clk 0:00:16]} 62. Rc5 {[%clk
0:00:16.5]} 62... Kd7 {[%clk 0:00:15.2]} 63. Ke5 {[%clk 0:00:17.7]} 63... Ne6
{[%clk 0:00:15.9]} 64. Rxb5 {[%clk 0:00:18]} 64... Nxg5 {[%clk 0:00:16.9]} 65.
Rc5 {[%clk 0:00:19]} 65... Ne6 {[%clk 0:00:16.8]} 66. Rc2 {[%clk 0:00:19.2]}
66... Nc7 {[%clk 0:00:17.1]} 67. Kd4 {[%clk 0:00:16.9]} 67... g5 {[%clk
0:00:14.4]} 68. Kc5 {[%clk 0:00:15.6]} 68... Ne6+ {[%clk 0:00:13]} 69. Kc4
{[%clk 0:00:15.5]} 69... g4 {[%clk 0:00:12]} 70. Rg2 {[%clk 0:00:16.1]} 1-0